Workbook

Sheet Coti
B1: Décompte de salaire
C2: Cellules bleues à compléter
C4: Charges sociales | E4: Employeur | G4: Employé
C5: ./. Caisse de pens. | E5: 12 | F5: % | G5: 10 | H5: %
C6: ./. Ass acc non prof | E6: 0.4 | F6: % | G6: 1.46 | H6: %
C7: ./. AVS/AI/APG/AC | E7: 6.35 | F7: % | G7: 6.05 | H7: %
C9: Allocation par enfant | E9: 150.00
D11: annuel | E11: mensuel | G11: 0.00 | I11: 0.00
C12: Seuil d'entrée | D12: 19,350.- | E12: =D12/12 -> 1,612.50 | G12: =E12 -> 1,612.50 | I12: =E13-E12 -> 268.75
C13: Salaire assuré minimum | D13: 22,575.- | E13: =D13/12 -> 1,881.25 | G13: =E13+(E13-E12) -> 2,150.00 | I13: =G19 -> 3,118.75
C14: Salaire assuré maximum | D14: 77,400.- | E14: =D14/12 -> 6,450.00 | G14: =E14 -> 6,450.00 | I14: =(D14-D13)/12 -> 4,568.75
G15: 20,000.00
C17: Simulateur
C18: Salaire brut | D18: Salaire cotisant LPP | G18: Salaire coordonné
C19: 5,000.00 | D19: =LOOKUP(C19,G11:I15) -> 3,118.75 | F19: 10,000.00 | G19: =C19-E13 -> 3,118.75

Sheet Fiches 1 et 2
B1: FICHE DE SALAIRE | G1: mois : | I1: B
B4: Nom : | D4: TUANORFA Laure
B5: Avs no | I5: AVS o/n | J5: n
B6: Nb enfants | I6: LPP o/n | J6: n
C9: Décompte
C10: Salaire déterminant AVS | L10: 690.00
C12: Allocations enfants | L12: =D6*Coti!$E$9 -> 0.00
C14: Salaire brut | L14: =L10+L12 -> 690.00
C16: Charges sociales | E16: totales | G16: à charge | I16: s/CHF
C17: ./. Caisse de pens. | E17: =Coti!$E$5+Coti!$G$5 -> 22 | F17: % | G17: =Coti!$G$5 -> 10 | H17: % | I17: =IF(L10<Coti!$G$12,0,IF(AND(L10>Coti!$G$12-0.1,L10<Coti!$G$13),Coti!$I$12,IF(L10>Coti!$G$14,Coti!$I$14,IF(L10>Coti!$G$13-0.1,L10-Coti!$E$13)))) -> 0.00 | K17: =IF(J6="o",I17*G17/100,0) -> 0.00
C18: ./. Ass acc non prof | E18: =Coti!$E$6+Coti!$G$6 -> 1.86 | F18: % | G18: =Coti!$G$6 -> 1.46 | H18: % | I18: =L10 -> 690.00 | K18: =I18*G18/100 -> 10.07 | L18: =SUM(K17:K19) -> 10.07
C19: ./. AVS/AI/APG/AC | E19: =Coti!$E$7+Coti!$G$7 -> 12.4 | F19: % | G19: =Coti!$G$7 -> 6.05 | H19: % | I19: =L10 -> 690.00 | K19: =IF(J5="o",I19*G19/100,0) -> 0.00
C20: Autres déductions | K20: -
C21: Bonifications | E21: assurance malade | K21: + | L21: 120.00
C23: Frais de déplacements | E23: Nb de km | G23: Tarif | I23: Forfait
F24: km | H24: fr. | J24: fr. | L24: =(E24*G24)+I24 -> 0.00
C25: Arrondi au fr. sup. | L25: =L26-(L14-L18-L20+L21+L24) -> 0.07
C26: Montant net | K26: Net : | L26: =CEILING((L14-L18-L20+L21+L24),1) -> 800.00
B31: FICHE DE SALAIRE | G31: mois :
B34: Nom : | D34: DEWERT Hélène
B35: Avs no | I35: AVS o/n | J35: o
B36: Nb enfants | D36: 1 | I36: LPP o/n | J36: o
C39: Décompte
C40: Salaire déterminant AVS | L40: 4,200.00
C42: Allocations enfants | L42: =D36*Coti!$E$9 -> 150.00
C44: Salaire brut | L44: =L40+L42 -> 4,350.00
C46: Charges sociales | E46: totales | G46: à charge | I46: s/CHF
C47: ./. Caisse de pens. | E47: =Coti!$E$5+Coti!$G$5 -> 22 | F47: % | G47: =Coti!$G$5 -> 10 | H47: % | I47: =IF(L40<Coti!$G$12,0,IF(AND(L40>Coti!$G$12-0.1,L40<Coti!$G$13),Coti!$I$12,IF(L40>Coti!$G$14,Coti!$I$14,IF(L40>Coti!$G$13-0.1,L40-Coti!$E$13)))) -> 2,318.75 | K47: =IF(J36="o",I47*G47/100,0) -> 231.88
C48: ./. Ass acc non prof | E48: =Coti!$E$6+Coti!$G$6 -> 1.86 | F48: % | G48: =Coti!$G$6 -> 1.46 | H48: % | I48: =L40 -> 4,200.00 | K48: =I48*G48/100 -> 61.32 | L48: =SUM(K47:K49) -> 547.30
C49: ./. AVS/AI/APG/AC | E49: =Coti!$E$7+Coti!$G$7 -> 12.4 | F49: % | G49: =Coti!$G$7 -> 6.05 | H49: % | I49: =L40 -> 4,200.00 | K49: =IF(J35="o",I49*G49/100,0) -> 254.10
C50: Autres déductions | E50: avance de salaire | K50: - | L50: 400.00
C51: Bonifications | K51: +
C53: Frais de déplacements | E53: Nb de km | G53: Tarif | I53: Forfait
F54: km | H54: fr. | J54: fr. | L54: =(E54*G54)+I54 -> 0.00
C55: Arrondi au fr. sup. | L55: =L56-(L44-L48-L50+L51+L54) -> 0.30
C56: Montant net | K56: Net : | L56: =CEILING((L44-L48-L50+L51+L54),1) -> 3,403.00

Sheet Fiches 3 et 4
B1: FICHE DE SALAIRE | G1: mois :
B4: Nom : | D4: HATAN Charles
B5: Avs no | I5: AVS o/n | J5: o
B6: Nb enfants | D6: 3 | I6: LPP o/n | J6: o
C9: Décompte
C10: Salaire déterminant AVS | L10: 7,800.00
C12: Allocations enfants | L12: =D6*Coti!$E$9 -> 450.00
C14: Salaire brut | L14: =L10+L12 -> 8,250.00
C16: Charges sociales | E16: totales | G16: à charge | I16: s/CHF
C17: ./. Caisse de pens. | E17: =Coti!$E$5+Coti!$G$5 -> 22 | F17: % | G17: =Coti!$G$5 -> 10 | H17: % | I17: =IF(L10<Coti!$G$12,0,IF(AND(L10>Coti!$G$12-0.1,L10<Coti!$G$13),Coti!$I$12,IF(L10>Coti!$G$14,Coti!$I$14,IF(L10>Coti!$G$13-0.1,L10-Coti!$E$13)))) -> 4,568.75 | K17: =IF(J6="o",I17*G17/100,0) -> 456.88
C18: ./. Ass acc non prof | E18: =Coti!$E$6+Coti!$G$6 -> 1.86 | F18: % | G18: =Coti!$G$6 -> 1.46 | H18: % | I18: =L10 -> 7,800.00 | K18: =I18*G18/100 -> 113.88 | L18: =SUM(K17:K19) -> 1,042.66
C19: ./. AVS/AI/APG/AC | E19: =Coti!$E$7+Coti!$G$7 -> 12.4 | F19: % | G19: =Coti!$G$7 -> 6.05 | H19: % | I19: =L10 -> 7,800.00 | K19: =IF(J5="o",I19*G19/100,0) -> 471.90
C20: Autres déductions | K20: -
C21: Bonifications | K21: +
C23: Frais de déplacements | E23: Nb de km | G23: Tarif | I23: Forfait
F24: km | H24: fr. | I24: 320 | J24: fr. | L24: =(E24*G24)+I24 -> 320.00
C25: Arrondi au fr. sup. | L25: =L26-(L14-L18-L20+L21+L24) -> 0.65
C26: Montant net | K26: Net : | L26: =CEILING((L14-L18-L20+L21+L24),1) -> 7,528.00
B31: FICHE DE SALAIRE | G31: mois :
B34: Nom :
B35: Avs no | I35: AVS o/n | J35: o
B36: Nb enfants | I36: LPP o/n | J36: o
C39: Décompte
C40: Salaire déterminant AVS | L40: 0.00
C42: Allocations enfants | L42: =D36*Coti!$E$9 -> 0.00
C44: Salaire brut | L44: =L40+L42 -> 0.00
C46: Charges sociales | E46: totales | G46: à charge | I46: s/CHF
C47: ./. Caisse de pens. | E47: =Coti!$E$5+Coti!$G$5 -> 22 | F47: % | G47: =Coti!$G$5 -> 10 | H47: % | I47: =IF(L40<Coti!$G$12,0,IF(AND(L40>Coti!$G$12-0.1,L40<Coti!$G$13),Coti!$I$12,IF(L40>Coti!$G$14,Coti!$I$14,IF(L40>Coti!$G$13-0.1,L40-Coti!$E$13)))) -> 0.00 | K47: =IF(J36="o",I47*G47/100,0) -> 0.00
C48: ./. Ass acc non prof | E48: =Coti!$E$6+Coti!$G$6 -> 1.86 | F48: % | G48: =Coti!$G$6 -> 1.46 | H48: % | I48: =L40 -> 0.00 | K48: =I48*G48/100 -> 0.00 | L48: =SUM(K47:K49) -> 0.00
C49: ./. AVS/AI/APG/AC | E49: =Coti!$E$7+Coti!$G$7 -> 12.4 | F49: % | G49: =Coti!$G$7 -> 6.05 | H49: % | I49: =L40 -> 0.00 | K49: =IF(J35="o",I49*G49/100,0) -> 0.00
C50: Autres déductions | K50: -
C51: Bonifications | K51: +
C53: Frais de déplacements | E53: Nb de km | G53: Tarif | I53: Forfait
F54: km | H54: fr. | J54: fr. | L54: =(E54*G54)+I54 -> 0.00
C55: Arrondi au fr. sup. | L55: =L56-(L44-L48-L50+L51+L54) -> 0.00
C56: Montant net | K56: Net : | L56: =CEILING((L44-L48-L50+L51+L54),1) -> 0.00

Sheet Vide à imprimer
B1: FICHE DE SALAIRE | G1: mois :
B4: Nom :
B5: Avs no | I5: AVS o/n
B6: Nb enfants | I6: LPP o/n
C9: Décompte
C10: Salaire déterminant AVS
C12: Allocations enfants | L12: =D6*Coti!$E$9 -> 0.00
C14: Salaire brut | L14: =L10+L12 -> 0.00
C16: Charges sociales | E16: totales | G16: à charge | I16: s/CHF
C17: ./. Caisse de pens. | F17: % | H17: % | I17: =IF(L10<Coti!$G$12,0,IF(AND(L10>Coti!$G$12-0.1,L10<Coti!$G$13),Coti!$I$12,IF(L10>Coti!$G$14,Coti!$I$14,IF(L10>Coti!$G$13-0.1,L10-Coti!$E$13)))) -> 0 | K17: =IF(J6="o",I17*G17/100,0) -> 0.00
C18: ./. Ass acc non prof | F18: % | H18: % | I18: =L10 -> 0 | K18: =I18*G18/100 -> 0.00 | L18: =SUM(K17:K19) -> 0.00
C19: ./. AVS/AI/APG/AC | F19: % | H19: % | I19: =L10 -> 0 | K19: =IF(J5="o",I19*G19/100,0) -> 0.00
C20: Autres déductions | K20: -
C21: Bonifications | K21: +
C23: Frais de déplacements | E23: Nb de km | G23: Tarif | I23: Forfait
F24: km | H24: fr. | J24: fr. | L24: =(E24*G24)+I24 -> 0.00
C25: Arrondi au fr. sup. | L25: =L26-(L14-L18-L20+L21+L24) -> 0.00
C26: Montant net | K26: Net : | L26: =CEILING((L14-L18-L20+L21+L24),1) -> 0.00
B31: FICHE DE SALAIRE | G31: mois :
B34: Nom :
B35: Avs no | I35: AVS o/n
B36: Nb enfants | I36: LPP o/n
C39: Décompte
C40: Salaire déterminant AVS
C42: Allocations enfants | L42: =D36*Coti!$E$9 -> 0.00
C44: Salaire brut | L44: =L40+L42 -> 0.00
C46: Charges sociales | E46: totales | G46: à charge | I46: s/CHF
C47: ./. Caisse de pens. | H47: % | I47: =IF(L40<Coti!$G$12,0,IF(AND(L40>Coti!$G$12-0.1,L40<Coti!$G$13),Coti!$I$12,IF(L40>Coti!$G$14,Coti!$I$14,IF(L40>Coti!$G$13-0.1,L40-Coti!$E$13)))) -> 0 | K47: =IF(J36="o",I47*G47/100,0) -> 0.00
C48: ./. Ass acc non prof | H48: % | I48: =L40 -> 0 | K48: =I48*G48/100 -> 0.00 | L48: =SUM(K47:K49) -> 0.00
C49: ./. AVS/AI/APG/AC | H49: % | I49: =L40 -> 0 | K49: =IF(J35="o",I49*G49/100,0) -> 0.00
C50: Autres déductions | K50: -
C51: Bonifications | K51: +
C53: Frais de déplacements | E53: Nb de km | G53: Tarif | I53: Forfait
F54: km | H54: fr. | J54: fr. | L54: =(E54*G54)+I54 -> 0.00
C55: Arrondi au fr. sup. | L55: =L56-(L44-L48-L50+L51+L54) -> 0.00
C56: Montant net | K56: Net : | L56: =CEILING((L44-L48-L50+L51+L54),1) -> 0.00
